bitfinex/quotes_SOLUSD_20250414
["timestamp","ask_amount","ask_price","bid_price","bid_amount"]
[1744669999645,12.29600361,129.32,129.28,21.57450361]
[1744669999838,20.02820361,129.33,129.28,21.57450361]
[1744670000018,12.29600361,129.31,129.28,1.5436]
[1744670000223,7.7322,129.33,129.26,23.49600361]
[1744670000224,12.29600361,129.29,129.26,18.936]
[1744670000528,12.29600361,129.29,129.26,11.2]
[1744670001240,12.29600361,129.27,129.24,7.6775]
[1744670001632,12.29600361,129.27,129.24,15.415]
[1744670002929,12.29600361,129.28,129.24,15.415]
[1744670005246,7.7333,129.31,129.25,12.29600361]
[1744670005433,38.29600361,129.31,129.26,12.29600361]
[1744670005834,12.29600361,129.3,129.25,12.29600361]
[1744670006353,12.29600361,129.29,129.24,15.415]
[1744670006538,12.29600361,129.28,129.24,27.71100361]
[1744670006734,12.29600361,129.29,129.24,27.71100361]
[1744670006943,20.03060361,129.29,129.24,27.71100361]
[1744670010651,12.29600361,129.29,129.24,27.71100361]
[1744670010832,12.29600361,129.29,129.25,12.29600361]
[1744670011033,12.29600361,129.29,129.24,47.05480361]
[1744670011350,20.03080361,129.29,129.24,27.71100361]
[1744670013264,15.59518278,129.29,129.24,23.27538278]
[1744670015958,7.86038278,129.29,129.24,23.27538278]
[1744670018667,15.59498278,129.29,129.24,23.27538278]
[1744670020069,7.86038278,129.29,129.24,23.27538278]
[1744670020451,7.86038278,129.29,129.25,7.86038278]
[1744670021175,15.59498278,129.29,129.24,23.27538278]
[1744670023144,7.86038278,129.27,129.24,15.415]
[1744670023645,7.86038278,129.28,129.24,15.415]
[1744670024478,7.86038278,129.26,129.23,11.2]
[1744670024645,7.86038278,129.25,129.22,0.063]
[1744670025656,7.86038278,129.26,129.22,7.8016]
[1744670025848,7.86038278,129.26,129.22,15.66198278]
[1744670026172,7.86038278,129.27,129.22,15.66198278]
[1744670027270,7.86038278,129.28,129.24,7.86038278]
[1744670027652,7.86038278,129.28,129.23,7.86038278]
[1744670028368,7.86038278,129.28,129.24,7.7375]
[1744670028552,7.86038278,129.28,129.24,15.59788278]
[1744670028750,7.86038278,129.28,129.24,7.7375]
[1744670030153,15.59488278,129.29,129.24,15.59788278]
[1744670030978,7.86038278,129.29,129.24,15.59788278]
[1744670031183,114.5336,129.31,129.25,7.86038278]
[1744670031354,96.39398278,129.31,129.26,7.86038278]
[1744670032293,96.39398278,129.31,129.26,15.59618278]
[1744670032590,80.8,129.31,129.27,7.86038278]
[1744670032767,7.86038278,129.32,129.28,7.86038278]
[1744670033691,7.7324,129.33,129.28,7.86038278]
[1744670033991,15.59278278,129.33,129.28,7.86038278]
[1744670034192,8.15738471,129.35,129.28,15.59488278]
[1744670034360,7.86038278,129.33,129.28,15.59488278]
[1744670034896,7.86038278,129.33,129.27,11.2]
[1744670034897,7.86038278,129.31,129.27,11.2]
[1744670035073,0.14216157,129.34,129.27,11.2]
[1744670035074,7.86038278,129.3,129.27,11.2]
[1744670036492,7.86038278,129.3,129.27,18.9357]
[1744670036989,15.59378278,129.31,129.27,18.9357]
[1744670037290,7.86038278,129.31,129.27,18.9357]
[1744670037473,7.86038278,129.32,129.27,26.79608278]
[1744670038093,15.59318278,129.32,129.27,26.79608278]
[1744670038589,7.86038278,129.31,129.27,26.79608278]
[1744670038771,7.86038278,129.3,129.27,11.2]
[1744670042598,15.59438278,129.3,129.27,11.2]
[1744670043503,7.86038278,129.3,129.26,23.65068278]
[1744670043699,15.59388278,129.31,129.26,23.65068278]
[1744670043997,7.86038278,129.3,129.26,23.65068278]
[1744670044404,7.86038278,129.3,129.26,15.7903]
[1744670045304,15.59448278,129.3,129.26,15.7903]
[1744670045501,15.59448278,129.3,129.26,8.054]
[1744670045907,7.86038278,129.3,129.26,23.65058278]
[1744670046115,7.86038278,129.34,129.29,7.86038278]
[1744670046403,7.86038278,129.34,129.3,7.86038278]
[1744670046610,0.03,129.36,129.33,7.86038278]
[1744670046783,0.03,129.36,129.35,7.86038278]
[1744670047716,0.03,129.36,129.35,15.59128278]
[1744670047922,0.03,129.36,129.34,7.86038278]
[1744670048420,0.03,129.36,129.33,7.86038278]
[1744670048598,0.03,129.36,129.32,15.59288278]
[1744670050718,7.86038278,129.34,129.3,1.5843]
[1744670051423,7.86038278,129.34,129.3,17.17858278]
[1744670052422,15.59198278,129.34,129.3,17.17858278]
[1744670052724,7.86038278,129.35,129.3,17.17858278]
[1744670053424,15.59148278,129.35,129.31,7.86038278]
[1744670054531,7.86038278,129.35,129.3,17.17858278]
[1744670055125,15.59128278,129.35,129.3,17.17858278]
[1744670055629,7.86038278,129.35,129.3,17.17858278]
[1744670056401,0.03,129.36,129.32,15.59308278]
[1744670056608,0.03,129.36,129.34,7.86038278]
[1744670057320,0.03,129.36,129.35,7.86038278]
[1744670057705,0.03,129.36,129.34,7.86038278]
[1744670058932,0.03,129.36,129.34,15.59138278]
[1744670060333,0.03,129.36,129.35,8.00254435]
[1744670061033,0.03,129.36,129.35,15.73344435]
[1744670062044,0.03,129.36,129.35,7.7309]
[1744670063334,0.03,129.36,129.34,22.21838278]
[1744670064644,0.03,129.36,129.35,7.86038278]
[1744670065438,0.03,129.36,129.33,26.77218278]
[1744670065740,0.03,129.36,129.33,19.04038278]
[1744670065929,7.89038278,129.36,129.33,11.18]
[1744670066438,7.86038278,129.35,129.31,22.19208278]
[1744670066642,7.89038278,129.36,129.32,7.86038278]
[1744670067643,7.89038278,129.36,129.32,15.59288278]
[1744670069445,0.03,129.36,129.32,15.59288278]
[1744670069949,7.89038278,129.36,129.32,7.7325]
[1744670070150,7.89038278,129.36,129.31,14.332]
[1744670070330,7.89038278,129.36,129.31,7.733]
[1744670070535,31.47153112,129.36,129.28,108.2853]
[1744670070734,7.86038278,129.31,129.28,11.18]
[1744670070922,6.5101,129.34,129.26,11.51438738]
[1744670071235,7.86038278,129.29,129.25,15.73914435]
[1744670071829,7.86038278,129.31,129.26,7.86038278]
[1744670072028,7.86038278,129.31,129.27,7.86038278]
[1744670072230,7.86038278,129.31,129.26,7.86038278]
[1744670072449,7.86038278,129.3,129.25,15.73914435]
[1744670072847,7.86038278,129.3,129.26,7.86038278]
[1744670073347,12.27914338,129.3,129.26,12.27914338]
[1744670073546,12.27914338,129.3,129.26,20.01504338]
[1744670073748,20.01314338,129.3,129.26,7.7359]
[1744670074153,6.5101,129.34,129.28,12.27914338]
[1744670074325,12.27914338,129.33,129.28,12.27914338]
[1744670075423,20.01084338,129.34,129.29,20.01324338]
[1744670076423,7.7317,129.34,129.29,20.01324338]
[1744670076624,20.01144338,129.33,129.29,20.01324338]
[1744670076823,20.01144338,129.33,129.28,20.01404338]
[1744670078762,20.01144338,129.33,129.27,20.01464338]
[1744670078763,12.27914338,129.32,129.27,20.01464338]
[1744670079555,7.7323,129.33,129.26,0.14216157]
[1744670079556,12.27914338,129.3,129.26,7.736]
[1744670082160,20.01324338,129.3,129.26,7.736]
[1744670082530,46.01184338,129.32,129.27,12.27914338]
[1744670082839,20.01184338,129.32,129.27,12.27914338]
[1744670083863,12.27914338,129.31,129.27,12.27914338]
[1744670084356,12.27914338,129.31,129.27,20.01454338]
[1744670085157,12.27914338,129.3,129.26,20.01524338]
[1744670085661,12.27914338,129.31,129.26,20.01524338]
[1744670086955,20.01274338,129.31,129.26,20.01524338]
[1744670087759,7.7336,129.31,129.26,20.01524338]
[1744670087940,20.01274338,129.31,129.26,20.01524338]
[1744670088463,12.27914338,129.29,129.26,7.7361]
[1744670088764,12.27914338,129.29,129.25,20.01574338]
[1744670089660,12.27914338,129.3,129.25,20.01574338]
[1744670090857,20.01324338,129.3,129.25,20.01574338]
[1744670091765,12.27914338,129.31,129.27,12.27914338]
[1744670093072,20.01264338,129.31,129.26,20.01504338]
[1744670093369,15.59139911,129.31,129.26,15.59379911]
[1744670093970,7.85789911,129.3,129.25,15.73696068]
[1744670095790,15.59179911,129.3,129.25,7.87906157]
[1744670096078,15.59179911,129.3,129.25,15.59479911]
[1744670097365,15.59269911,129.29,129.25,7.7369]
[1744670099451,7.85789911,129.3,129.25,7.7369]
[1744670099651,27.0654,129.32,129.25,15.59479911]
[1744670099869,7.85789911,129.3,129.25,15.59479911]
[1744670100072,7.85789911,129.31,129.26,7.85789911]
[1744670100462,7.85789911,129.3,129.25,15.59479911]
[1744670100675,15.59239911,129.3,129.25,15.59479911]
[1744670105169,7.85789911,129.31,129.26,7.85789911]
[1744670105663,15.59089911,129.32,129.26,7.85789911]
[1744670106381,15.59089911,129.32,129.27,7.7357]
[1744670107486,15.59089911,129.32,129.27,15.59359911]
[1744670107659,7.85789911,129.33,129.28,7.85789911]
[1744670107867,7.7318,129.34,129.29,7.85789911]
[1744670108075,80.83,129.36,129.3,7.85789911]
[1744670108273,88.68789911,129.36,129.31,7.85789911]
[1744670109196,80.83,129.36,129.32,7.85789911]
[1744670109356,0.03,129.36,129.34,7.85789911]
[1744670109682,0.03,129.36,129.34,15.58889911]
[1744670112062,0.03,129.36,129.34,7.85789911]
[1744670112262,0.03,129.36,129.33,17.19789911]
[1744670113282,0.03,129.36,129.32,26.77029911]
[1744670114386,0.03,129.36,129.34,7.85789911]
[1744670114689,0.03,129.36,129.34,14.18909911]
[1744670114983,0.03,129.36,129.35,7.85789911]
[1744670116085,0.03,129.36,129.35,28.67859425]
[1744670116282,1.2092738,129.37,129.36,66.09592912]
[1744670117480,1.2092738,129.37,129.36,66.23809069]
[1744670117869,0.03,129.41,129.38,19.07613357]
[1744670118085,0.03,129.41,129.4,7.85789911]
[1744670118387,0.03,129.41,129.39,26.74629911]
[1744670119077,0.03,129.41,129.4,7.85789911]
[1744670119277,0.03,129.41,129.4,12.25213622]
[1744670119583,0.03,129.41,129.39,11.16]
[1744670119781,0.03,129.41,129.39,12.25213622]
[1744670120179,0.03,129.41,129.4,12.25213622]
[1744670121987,0.03,129.41,129.4,19.98003622]
[1744670122591,0.03,129.41,129.4,20.12219779]
[1744670123089,0.03,129.41,129.4,40.79523136]
[1744670124883,0.03,129.41,129.4,21.71909779]
[1744670125707,0.03,129.41,129.4,21.57693622]
[1744670126503,0.03,129.41,129.4,19.98003622]
[1744670135208,0.03,129.41,129.4,12.25213622]
[1744670136800,0.03,129.41,129.4,19.98003622]
[1744670141310,0.03,129.41,129.4,15.56859827]
[1744670145316,0.03,129.41,129.4,7.84069827]
[1744670145506,0.03,129.41,129.38,11.28216157]
[1744670145704,0.03,129.41,129.39,7.84069827]
[1744670146810,0.03,129.41,129.38,26.85165984]
[1744670149116,0.03,129.41,129.38,11.14]
[1744670150314,0.03,129.41,129.37,15.57029827]
[1744670150624,0.03,129.41,129.4,7.84069827]
[1744670152699,0.03,129.41,129.4,15.56859827]
[1744670156033,0.03,129.41,129.4,34.78689341]
[1744670156204,0.03,129.41,129.4,45.92689341]
[1744670158608,0.03,129.41,129.4,26.85075984]
[1744670159035,0.03,129.41,129.4,18.8679]
[1744670159200,0.03,129.41,129.4,26.70859827]
[1744670161917,0.03,129.41,129.4,45.92689341]
[1744670163332,0.03,129.41,129.4,26.70859827]
[1744670165242,0.03,129.41,129.39,15.56889827]
[1744670165421,0.03,129.41,129.39,7.84069827]
[1744670166350,0.03,129.41,129.4,7.84069827]
[1744670166514,0.03,129.41,129.4,15.56859827]
[1744670166841,0.03,129.41,129.4,34.78689341]
[1744670172231,0.0001,129.41,129.4,34.78689341]
[1744670177467,0.0001,129.41,129.4,15.71075984]
[1744670180373,0.0001,129.41,129.4,34.78689341]
[1744670180544,0.0001,129.42,129.41,39.34565292]
[1744670180858,0.0001,129.43,129.41,60.00898649]
[1744670181155,0.0001,129.43,129.42,39.34565292]
[1744670182371,0.0001,129.43,129.42,47.07235292]
[1744670182672,0.03,129.47,129.44,0.14216157]
[1744670182883,0.03,129.47,129.46,7.84069827]
[1744670183545,0.03,129.47,129.46,15.70715984]
[1744670184975,0.03,129.47,129.46,66.14608649]
[1744670185273,0.03,129.49,129.48,65.34565292]
[1744670185439,0.03,129.49,129.46,54.094672]
[1744670185810,0.03,129.49,129.48,7.84069827]
[1744670186075,0.03,129.49,129.46,15.56499827]
[1744670186553,0.03,129.49,129.46,7.84069827]
[1744670186751,0.03,129.49,129.45,26.68539827]
[1744670187650,0.03,129.49,129.47,7.84069827]
[1744670188071,0.03,129.49,129.46,7.84069827]
[1744670190066,0.03,129.49,129.46,7.724]
[1744670190260,0.03,129.49,129.46,15.56469827]
[1744670192474,9.52439827,129.49,129.45,11.12]
[1744670193374,1.6837,129.49,129.46,7.84069827]
[1744670194364,0.03,129.49,129.47,15.56439827]
[1744670195397,0.03,129.49,129.48,7.84069827]
[1744670195993,0.03,129.49,129.47,15.56439827]
[1744670196492,0.03,129.49,129.47,7.7237]
[1744670196781,0.03,129.49,129.48,39.34565292]
[1744670197175,0.03,129.49,129.48,7.98285984]
[1744670197778,0.03,129.49,129.47,7.7237]
[1744670197978,0.03,129.49,129.48,7.84069827]
[1744670198671,0.03,129.49,129.48,15.56389827]
[1744670199175,0.03,129.49,129.48,7.7232]
[1744670199375,0.03,129.49,129.48,15.56389827]
[1744670199993,0.03,129.49,129.48,7.7232]
[1744670200174,0.03,129.49,129.48,15.56389827]
[1744670200592,0.03,129.49,129.48,7.7232]
[1744670200888,0.03,129.49,129.47,15.56439827]
[1744670201776,0.03,129.49,129.46,7.7242]
[1744670203777,7.87069827,129.49,129.45,18.8448]
[1744670204586,0.03,129.49,129.45,18.8448]
[1744670204895,7.87069827,129.49,129.45,18.8448]
[1744670205891,15.59339827,129.49,129.42,240.82]
[1744670206102,7.84069827,129.44,129.39,11.1]
[1744670206280,7.84069827,129.42,129.39,11.1]
[1744670206874,7.84069827,129.42,129.35,18.94069827]
[1744670206875,7.84069827,129.4,129.35,18.94069827]
[1744670207081,7.84069827,129.39,129.36,30.0]
[1744670207283,12.26225454,129.39,129.36,30.0]
[1744670207481,12.26225454,129.39,129.35,11.1]
[1744670208498,19.99085454,129.39,129.35,11.1]
[1744670209083,12.26225454,129.38,129.35,11.1]
[1744670209406,19.99085454,129.39,129.35,11.1]
[1744670210498,13.90685454,129.41,129.36,12.26225454]
[1744670210682,1.6446,129.41,129.37,12.26225454]
[1744670211000,13.90685454,129.41,129.37,12.26225454]
[1744670211203,88.663,129.44,129.38,12.26225454]
[1744670211504,12.26225454,129.43,129.39,12.26225454]
[1744670212089,12.26225454,129.43,129.38,12.26225454]
[1744670212293,19.98845454,129.43,129.38,19.99095454]
[1744670214997,12.26225454,129.43,129.38,19.99095454]
[1744670215195,12.26225454,129.43,129.39,12.26225454]
[1744670215909,12.26225454,129.43,129.38,19.99095454]
[1744670216102,1.6446,129.44,129.4,12.26225454]
[1744670217191,13.90685454,129.44,129.4,7.7279]
[1744670217389,12.26225454,129.42,129.38,12.26225454]
[1744670218108,12.26225454,129.43,129.38,12.26225454]
[1744670218410,12.26225454,129.43,129.38,19.99105454]
[1744670218823,19.98845454,129.43,129.38,19.99105454]
[1744670220007,12.26225454,129.42,129.38,19.99105454]
[1744670220206,12.26225454,129.41,129.36,7.7303]
[1744670220390,12.26225454,129.4,129.35,19.99285454]
[1744670220593,13.78775454,129.38,129.34,18.9142]
[1744670220786,12.26225454,129.37,129.34,11.183]
[1744670220991,12.26225454,129.35,129.34,0.063]
[1744670221192,12.26225454,129.36,129.34,0.063]
[1744670221823,13.78775454,129.38,129.34,0.063]
[1744670222194,15.6122,129.41,129.34,20.05655454]
[1744670222526,15.6122,129.41,129.36,12.26225454]
[1744670222527,27.87445454,129.41,129.36,12.26225454]
[1744670222716,21.52745454,129.41,129.36,12.26225454]
[1744670223006,1.5376,129.41,129.38,12.26225454]
[1744670223347,12.26225454,129.41,129.37,12.26225454]
[1744670223986,12.26225454,129.4,129.35,0.14216157]
[1744670224192,12.26225454,129.41,129.36,19.99255454]
[1744670226033,12.26225454,129.42,129.37,12.26225454]
[1744670227722,12.26225454,129.43,129.38,19.99135454]
[1744670227915,13.79985454,129.44,129.39,12.26225454]
[1744670228924,21.52545454,129.44,129.39,12.26225454]
[1744670230332,12.26225454,129.43,129.38,12.26225454]
[1744670230842,9.2632,129.44,129.35,36.8638]
[1744670230843,12.26225454,129.41,129.35,36.8638]
[1744670231028,12.26225454,129.41,129.36,12.26225454]
[1744670231329,12.26225454,129.42,129.37,12.26225454]
[1744670232431,12.26225454,129.42,129.38,7.7291]
[1744670232632,12.26225454,129.42,129.36,7.7303]
[1744670232633,12.26225454,129.41,129.36,7.7303]
[1744670232924,12.26225454,129.39,129.35,18.8507]
[1744670233131,19.98915454,129.42,129.35,11.12]
[1744670233132,12.26225454,129.37,129.35,11.12]
[1744670233321,12.26225454,129.36,129.34,0.063]
[1744670233525,12.26225454,129.35,129.34,0.063]
[1744670234510,19.99315454,129.35,129.34,0.063]
[1744670235214,26.29745454,129.35,129.34,0.063]
[1744670235429,19.99315454,129.35,129.34,0.063]
[1744670237935,12.26225454,129.36,129.34,0.063]
[1744670238148,82.3747,129.38,129.34,0.063]
[1744670238371,93.06225454,129.38,129.34,0.063]
[1744670238554,12.26225454,129.37,129.34,0.063]
[1744670238843,12.26225454,129.36,129.34,0.063]
[1744670239726,19.99265454,129.36,129.34,0.063]
[1744670240040,12.26225454,129.35,129.34,0.063]
[1744670241511,19.99315454,129.35,129.34,0.063]
[1744670241731,20.41963925,129.35,129.34,0.063]
[1744670241929,40.75454968,129.35,129.34,0.063]
[1744670242547,0.42648471,129.33,129.32,0.063]
[1744670242760,31.48054968,129.33,129.32,0.063]
[1744670243061,44.79181043,129.32,129.31,0.063]
[1744670243245,57.05406497,129.32,129.31,0.063]
[1744670243429,38.68873925,129.32,129.31,0.063]
[1744670243632,46.42143925,129.32,129.31,0.063]
[1744670244548,7.7323,129.33,129.31,0.063]
[1744670244851,12.26225454,129.33,129.31,0.063]
[1744670245229,82.62742314,129.35,129.31,0.063]
[1744670245430,19.99405454,129.34,129.31,0.063]
[1744670245650,12.26225454,129.33,129.31,0.063]
[1744670250156,12.26225454,129.34,129.31,0.063]
[1744670250357,12.26225454,129.35,129.31,0.063]
[1744670251257,12.26225454,129.33,129.31,0.063]
[1744670251456,12.26225454,129.32,129.31,0.063]
[1744670253373,12.26225454,129.33,129.31,0.063]
[1744670253668,12.26225454,129.34,129.31,0.063]
[1744670253837,12.26225454,129.35,129.31,12.32525454]
[1744670254238,12.26225454,129.35,129.31,7.7959]
[1744670254745,19.99325454,129.35,129.31,0.063]
[1744670254951,12.26225454,129.32,129.31,0.063]
[1744670255152,12.26225454,129.34,129.31,0.063]
[1744670256258,19.99385454,129.34,129.31,0.063]
[1744670257968,12.26225454,129.35,129.31,0.063]
[1744670261579,19.99305454,129.36,129.31,13.85745454]
[1744670261746,19.99305454,129.36,129.31,43.85745454]
[1744670262163,12.26225454,129.34,129.31,31.5952]
[1744670262348,12.26225454,129.34,129.31,39.3285]
[1744670263471,12.26225454,129.34,129.31,9.3285]
[1744670264370,12.26225454,129.34,129.31,1.5952]
[1744670265079,12.26225454,129.34,129.31,9.3284]
[1744670266079,15.77686496,129.35,129.31,9.3284]
[1744670267087,15.77686496,129.34,129.31,0.063]
[1744670267291,15.77686496,129.33,129.31,0.063]
[1744670268274,23.50896496,129.33,129.31,0.063]
[1744670268987,15.77686496,129.33,129.31,0.063]
[1744670269196,23.50866496,129.34,129.31,0.063]
[1744670269365,15.77686496,129.34,129.31,0.063]
[1744670269683,23.50806496,129.35,129.31,0.063]
[1744670269882,15.77686496,129.34,129.31,0.063]
[1744670271589,15.77686496,129.35,129.31,0.063]
[1744670272300,15.77686496,129.34,129.31,0.063]
[1744670273211,23.50846496,129.34,129.31,0.063]
[1744670273700,7.7316,129.34,129.31,0.063]
[1744670274703,23.50806496,129.35,129.31,0.063]
[1744670274998,91.92,129.39,129.31,15.98202653]
[1744670275204,15.77686496,129.38,129.32,15.77686496]
[1744670275496,15.77686496,129.38,129.33,23.50896496]
[1744670275700,96.57686496,129.39,129.33,23.50896496]
[1744670276797,15.77686496,129.39,129.33,23.50896496]
[1744670277104,15.77686496,129.37,129.33,18.8521]
[1744670282203,15.77686496,129.37,129.33,7.7321]
[1744670282701,7.7282,129.4,129.33,23.50896496]
[1744670282911,15.77686496,129.38,129.33,23.50896496]
[1744670283419,7.7282,129.4,129.33,7.7321]
[1744670283420,15.77686496,129.37,129.33,7.7321]
[1744670283605,15.77686496,129.34,129.31,7.796]
[1744670283802,15.77686496,129.34,129.32,30.0]
[1744670284307,15.77686496,129.34,129.31,7.796]
[1744670284516,15.77686496,129.33,129.31,7.796]
[1744670286005,15.77686496,129.34,129.31,7.796]
[1744670286504,7.7306,129.36,129.31,7.796]
[1744670286811,15.77686496,129.35,129.31,7.796]
[1744670290521,19.3229,129.38,129.31,7.796]
[1744670290522,100.1204,129.4,129.32,15.91902653]
[1744670290712,15.77686496,129.39,129.34,15.77686496]
[1744670291314,10.08973958,129.39,129.34,10.08973958]
[1744670292119,10.08973958,129.39,129.35,7.7309]
[1744670292300,17.81833958,129.39,129.35,7.7309]
[1744670292822,10.08973958,129.38,129.35,7.7309]
[1744670293001,17.81833958,129.39,129.35,7.7309]
[1744670293199,23.49542738,129.39,129.35,7.7309]
[1744670294411,23.49542738,129.39,129.33,6.5944]
[1744670294412,15.76682738,129.36,129.33,6.5944]
[1744670294595,15.76682738,129.34,129.31,18.916]
[1744670295423,0.14216157,129.38,129.31,11.183]
[1744670295710,0.14216157,129.38,129.31,0.063]
[1744670295711,15.76682738,129.33,129.31,0.063]
[1744670295899,15.76682738,129.34,129.31,30.063]
[1744670296099,15.76682738,129.34,129.31,0.063]
[1744670296714,15.76682738,129.35,129.31,0.063]
[1744670296915,15.76682738,129.36,129.31,15.82982738]
[1744670297122,104.29672738,129.37,129.32,15.76682738]
[1744670297505,96.56682738,129.37,129.32,15.76682738]
[1744670297705,18.65174331,129.36,129.32,7.7327]
[1744670298207,15.76682738,129.34,129.31,0.063]
[1744670299206,15.76682738,129.34,129.31,7.7961]
[1744670301016,23.49782738,129.35,129.31,7.7961]
[1744670301317,2.88593439,129.34,129.32,15.76682738]
[1744670302014,2.88593439,129.34,129.33,7.7321]
[1744670302394,80.8,129.37,129.33,23.49892738]
[1744670302599,80.8,129.37,129.34,15.76682738]
[1744670302800,23.49562738,129.39,129.34,15.76682738]
[1744670302996,15.76682738,129.37,129.33,18.8321]
[1744670303309,15.76682738,129.37,129.33,11.1]
[1744670304418,15.76682738,129.37,129.33,18.8319]
[1744670305428,15.76682738,129.39,129.34,15.76682738]
[1744670305726,2.88476296,129.38,129.34,15.76682738]
[1744670306312,15.76682738,129.39,129.35,7.7309]
[1744670306617,23.49542738,129.39,129.34,23.49802738]
[1744670306822,15.76682738,129.37,129.33,11.1]
[1744670307821,15.76682738,129.37,129.33,18.8319]
[1744670310124,15.76682738,129.38,129.33,34.59872738]
[1744670310325,23.49552738,129.39,129.34,15.76682738]
[1744670310729,7.7287,129.39,129.34,15.76682738]
[1744670310915,15.76682738,129.39,129.34,15.76682738]
[1744670311317,2.8866526,129.38,129.35,15.76682738]
[1744670312130,2.8866526,129.38,129.36,7.7303]
[1744670312316,0.03,129.4,129.36,14.3849]
[1744670312516,0.03,129.4,129.36,30.14592552]
[1744670314705,15.76102552,129.37,129.33,18.7712]
[1744670314925,15.77004962,129.37,129.33,18.7712]
[1744670315429,15.77004962,129.38,129.33,34.54124962]
[1744670315722,15.77004962,129.38,129.34,7.7311]
[1744670316721,23.52814962,129.4,129.35,15.77004962]
[1744670317223,2.88603305,129.39,129.35,15.77004962]
[1744670317731,23.52814962,129.4,129.36,7.7303]
[1744670317924,0.03,129.4,129.37,15.77004962]
[1744670318233,0.03,129.4,129.38,15.77004962]
[1744670318641,0.03,129.4,129.39,15.77004962]
[1744670321617,0.03,129.4,129.39,23.49854962]
[1744670323620,0.0001,129.4,129.39,42.57468319]
[1744670323823,0.0001,129.41,129.4,19.21829514]
[1744670324028,0.0001,129.41,129.4,34.98834476]
[1744670324540,0.0001,129.41,129.4,42.90974476]
[1744670326132,0.0001,129.41,129.4,50.63764476]
[1744670326830,0.0001,129.41,129.4,31.56151119]
[1744670327747,0.0001,129.41,129.4,50.63764476]
[1744670336236,0.0001,129.43,129.42,76.75839438]
[1744670336434,0.0001,129.43,129.42,87.85839438]
[1744670337842,0.0001,129.43,129.42,95.58509438]
[1744670340440,0.0001,129.43,129.42,79.81504476]
[1744670341132,0.0001,129.43,129.42,95.58509438]
[1744670342942,0.03,129.47,129.46,45.21829514]
[1744670343127,0.03,129.48,129.47,19.07613357]
[1744670343456,0.03,129.48,129.47,45.92618319]
[1744670344746,0.03,129.48,129.47,11.08]
[1744670344947,0.03,129.48,129.47,18.94586157]
[1744670345251,0.03,129.48,129.47,34.71591119]
[1744670346752,0.03,129.48,129.47,53.79204476]
[1744670347254,0.03,129.48,129.47,38.02199514]
[1744670347459,0.03,129.48,129.47,18.94586157]
[1744670349443,0.03,129.48,129.47,18.8037]
[1744670350157,0.03,129.5,129.48,0.28432314]
[1744670350158,0.0001,129.5,129.48,0.28432314]
[1744670350459,0.03,129.53,129.52,19.21829514]
[1744670350658,0.03,129.53,129.52,46.06834476]
[1744670351170,0.03,129.53,129.52,40.35648019]
[1744670352063,0.03,129.53,129.52,38.01909514]
[1744670352266,0.03,129.53,129.52,48.07728019]
[1744670352565,1.6675,129.61,129.56,0.14216157]
[1744670352771,1.6675,129.61,129.57,21.13818505]
[1744670353064,1.6675,129.61,129.58,10.05818505]
[1744670353265,0.03,129.61,129.57,11.08]
[1744670353440,0.03,129.61,129.57,26.78768345]
[1744670353645,15.73768345,129.61,129.57,11.08]
[1744670354168,0.03,129.61,129.58,7.7172]
[1744670354673,15.73768345,129.61,129.58,7.7172]
[1744670354854,15.73768345,129.61,129.57,18.7975]
[1744670356558,15.70768345,129.6,129.56,7.7181]
[1744670357075,0.03,129.61,129.56,23.42578345]
[1744670357250,15.73768345,129.61,129.56,23.42578345]
[1744670357569,15.70768345,129.6,129.56,7.7181]
[1744670358068,15.73768345,129.61,129.56,23.42578345]
[1744670358768,23.45318345,129.61,129.56,23.42578345]
[1744670359073,15.70768345,129.6,129.56,7.7181]
[1744670360273,15.70768345,129.59,129.55,18.7987]
[1744670360567,15.70768345,129.59,129.54,15.70768345]
[1744670360759,15.70768345,129.58,129.54,18.7994]
[1744670361349,7.7164,129.6,129.54,34.50708345]
[1744670361563,0.03,129.61,129.58,15.70768345]
[1744670361750,0.03,129.61,129.6,15.70768345]
[1744670362457,0.03,129.61,129.6,23.42368345]
[1744670365754,0.03,129.61,129.6,7.716]
[1744670366570,0.03,129.61,129.59,18.7963]